bitfinex/quotes_BTCUSD_20220205
["timestamp","ask_amount","ask_price","bid_price","bid_amount"]
[1644081819849,0.00027652,41286.0,41283.0,0.05]
[1644081820052,0.01877232,41287.0,41285.0,0.09542854]
[1644081820249,0.01877232,41287.0,41286.0,0.386889]
[1644081820457,0.01989187,41289.0,41286.0,0.386889]
[1644081820650,0.01989187,41289.0,41288.0,0.04542854]
[1644081820851,0.01989187,41289.0,41288.0,0.38231754]
[1644081821451,0.01889187,41289.0,41288.0,0.37731754]
[1644081822250,0.00027652,41292.0,41288.0,0.37731754]
[1644081822452,0.34569024,41293.0,41291.0,0.35471266]
[1644081822453,0.00065807,41293.0,41291.0,0.35471266]
[1644081822652,0.00027652,41292.0,41291.0,0.09042854]
[1644081822851,0.060562,41308.0,41291.0,0.42731754]
[1644081822852,0.00027652,41295.0,41291.0,0.42731754]
[1644081823058,0.04845652,41299.0,41294.0,0.09042854]
[1644081823301,0.3,41303.0,41294.0,0.09042854]
[1644081823302,0.00027712,41298.0,41294.0,0.09042854]
[1644081823500,0.00263191,41300.0,41294.0,0.09042854]
[1644081823501,0.36729522,41299.0,41294.0,0.09042854]
[1644081823703,0.36757234,41299.0,41294.0,0.04042854]
[1644081823899,0.36757234,41299.0,41289.0,0.04042854]
[1644081824301,0.36729522,41299.0,41290.0,0.04042854]
[1644081824500,0.36797651,41299.0,41282.0,0.00068157]
[1644081824699,0.30661816,41287.0,41286.0,0.09042854]
[1644081824901,0.33616866,41293.0,41286.0,0.09042854]
[1644081825099,0.07809447,41289.0,41286.0,0.09042854]
[1644081825703,0.07809447,41289.0,41288.0,0.27360401]
[1644081825897,0.07809447,41289.0,41286.0,0.09042854]
[1644081826301,0.00027712,41292.0,41286.0,0.09042854]
[1644081826602,0.35525555,41293.0,41290.0,0.05]
[1644081826802,0.35565977,41293.0,41290.0,0.05]
[1644081827052,0.35565977,41293.0,41291.0,0.26765363]
[1644081827253,0.35565977,41293.0,41291.0,0.04042854]
[1644081827452,0.35565977,41293.0,41291.0,0.26856633]
[1644081827650,0.35565977,41293.0,41291.0,0.30899487]
[1644081827854,0.35497843,41293.0,41291.0,0.04042854]
[1644081828052,0.35497843,41293.0,41287.0,0.09042854]
[1644081828453,0.33644578,41293.0,41287.0,0.09042854]
[1644081828653,0.08950529,41289.0,41287.0,0.09042854]
[1644081828854,0.08450529,41289.0,41287.0,0.09042854]
[1644081829055,0.08450529,41289.0,41288.0,0.60558388]
[1644081829555,0.00027712,41292.0,41288.0,0.60558388]
[1644081829758,0.33644853,41293.0,41291.0,0.37731754]
[1644081830055,0.00027712,41292.0,41291.0,0.37731754]
[1644081830358,0.02127375,41294.0,41292.0,0.05]
[1644081830560,0.02127652,41294.0,41293.0,0.386889]
[1644081831103,0.02127652,41294.0,41293.0,0.336889]
[1644081831501,0.02099663,41294.0,41293.0,0.336889]
[1644081832101,0.32366938,41293.0,41289.0,0.336889]
[1644081832503,0.3239465,41293.0,41289.0,0.336889]
[1644081832702,0.32366938,41293.0,41289.0,0.336889]
[1644081832904,0.32435121,41293.0,41289.0,0.336889]
[1644081833203,0.32462833,41293.0,41292.0,0.04042854]
[1644081833406,0.32462833,41293.0,41288.0,0.31869488]
[1644081833407,0.32435121,41293.0,41288.0,0.31869488]
[1644081833605,0.32435121,41293.0,41292.0,0.336889]
[1644081833803,0.32366938,41293.0,41292.0,0.37731754]
[1644081834004,0.32435122,41293.0,41292.0,0.37731754]
[1644081834949,0.32366938,41293.0,41292.0,0.336889]
[1644081835151,0.32366938,41293.0,41292.0,0.3866286]
[1644081835551,0.32366938,41293.0,41292.0,0.3366286]
[1644081836552,0.0004303,41289.0,41288.0,0.26815288]
[1644081836751,0.0004303,41289.0,41288.0,0.60504788]
[1644081837553,0.08884455,41289.0,41288.0,0.336895]
[1644081837754,0.08884455,41289.0,41288.0,0.386895]
[1644081837952,0.08884455,41289.0,41288.0,0.336895]
[1644081838602,0.08884455,41289.0,41288.0,0.5341249]
[1644081839199,0.08884455,41289.0,41288.0,0.5841249]
[1644081839798,0.0004303,41289.0,41288.0,0.5841249]
[1644081839999,0.32366938,41293.0,41288.0,0.5841249]
[1644081840000,0.2743768,41293.0,41288.0,0.5841249]
[1644081840200,0.00027779,41291.0,41290.0,0.336895]
[1644081840400,0.2752535,41293.0,41290.0,0.336895]
[1644081840601,0.00059891,41293.0,41292.0,0.1]
[1644081840802,0.00059891,41293.0,41292.0,0.786895]
[1644081841001,0.01886555,41294.0,41292.0,0.786895]
[1644081841002,0.01886555,41294.0,41292.0,0.836895]
[1644081841206,0.01886555,41294.0,41293.0,0.37732354]
[1644081841401,0.01886555,41294.0,41293.0,0.52732354]
[1644081842051,0.01886555,41294.0,41293.0,0.42732354]
[1644081842252,0.01886555,41294.0,41293.0,0.52732354]
[1644081842451,0.00087668,41296.0,41293.0,0.52732354]
[1644081842652,0.00059889,41296.0,41295.0,0.26786691]
[1644081843051,0.00059889,41296.0,41295.0,0.36786691]
[1644081843453,0.00027779,41298.0,41295.0,0.36786691]
[1644081843652,0.00060018,41298.0,41295.0,0.36786691]
[1644081844655,0.02018522,41299.0,41295.0,0.36786691]
[1644081844957,0.02078829,41299.0,41295.0,0.36786691]
[1644081845157,0.00060307,41299.0,41298.0,0.29042854]
[1644081845358,0.00060307,41299.0,41298.0,0.97244133]
[1644081845555,0.00060307,41299.0,41298.0,1.02244133]
[1644081845809,0.00027779,41301.0,41298.0,1.07244133]
[1644081846011,0.00083414,41302.0,41301.0,0.336895]
[1644081846210,0.00055635,41302.0,41301.0,0.386895]
[1644081846413,0.00055635,41302.0,41301.0,0.436895]
[1644081846808,0.39304851,41305.0,41301.0,0.436895]
[1644081846809,0.36385487,41305.0,41301.0,0.436895]
[1644081847210,0.00060279,41304.0,41303.0,0.01997222]
[1644081848208,0.36385487,41305.0,41303.0,0.01997222]
[1644081851664,0.36385487,41305.0,41304.0,0.09042854]
[1644081851858,0.36385487,41305.0,41303.0,0.00567222]
[1644081852357,0.00066591,41306.0,41304.0,0.09042854]
[1644081852557,0.00066591,41306.0,41305.0,0.336895]
[1644081852758,0.00066591,41306.0,41305.0,0.386895]
[1644081852957,0.02175951,41309.0,41305.0,0.386895]
[1644081853212,0.00066589,41308.0,41305.0,0.386895]
[1644081853602,0.00066589,41308.0,41305.0,0.05]
[1644081853804,0.00066589,41308.0,41302.0,0.05]
[1644081854003,0.00066589,41308.0,41301.0,0.3789519]
[1644081854208,0.38625107,41309.0,41301.0,0.3789519]
[1644081854404,0.46222861,41309.0,41301.0,0.3789519]
[1644081854603,0.00064054,41307.0,41302.0,0.27001651]
[1644081854804,0.00064054,41307.0,41303.0,0.336895]
[1644081855005,0.00064054,41307.0,41303.0,0.386895]
[1644081855206,0.00064054,41307.0,41303.0,0.436895]
[1644081855405,0.38625107,41309.0,41304.0,0.336895]
[1644081855606,0.38625107,41309.0,41303.0,0.05]
[1644081855906,0.00064054,41307.0,41304.0,0.336895]
[1644081856105,0.00064054,41307.0,41304.0,0.3314332]
[1644081856306,0.00064054,41307.0,41305.0,0.05]
[1644081856712,0.00675951,41309.0,41305.0,0.26896336]
[1644081856953,0.00064053,41308.0,41307.0,0.15]
[1644081857155,0.00064053,41308.0,41307.0,0.83196287]
[1644081857355,0.00064053,41308.0,41307.0,1.03196287]
[1644081857553,0.00064053,41308.0,41307.0,0.93196287]
[1644081857754,0.01826283,41309.0,41307.0,0.486815]
[1644081857953,0.01826283,41309.0,41308.0,0.336807]
[1644081858154,0.01826283,41309.0,41308.0,0.59220081]
[1644081858354,0.02159331,41313.0,41308.0,0.59220081]
[1644081858553,0.02159331,41313.0,41308.0,0.45506983]
[1644081858755,0.02159331,41313.0,41309.0,0.336807]
[1644081858956,0.02159331,41313.0,41308.0,0.06826283]
[1644081859154,0.02159331,41313.0,41308.0,0.01826283]
[1644081859554,0.02159331,41313.0,41309.0,0.20486516]
[1644081859754,0.09519825,41313.0,41309.0,0.20486516]
[1644081860055,0.09519825,41313.0,41308.0,0.06826283]
[1644081860355,0.09519825,41313.0,41308.0,0.11326283]
[1644081860356,0.3532632,41309.0,41308.0,0.11326283]
[1644081861002,0.09519825,41313.0,41308.0,0.16326283]
[1644081861205,0.02159331,41313.0,41309.0,0.336807]
[1644081861405,0.02159331,41313.0,41312.0,0.09042854]
[1644081861606,0.02159331,41313.0,41312.0,0.69740863]
[1644081861804,0.02159331,41313.0,41312.0,0.84740863]
[1644081861805,0.02227542,41313.0,41312.0,0.84740863]
[1644081862008,0.02227542,41313.0,41312.0,0.57723554]
[1644081862405,0.00068211,41313.0,41312.0,0.57723554]
[1644081862608,0.06940617,41318.0,41312.0,0.57723554]
[1644081862806,0.01940617,41318.0,41317.0,0.19042854]
[1644081863005,0.01940617,41318.0,41317.0,0.57723554]
[1644081863409,0.01940617,41318.0,41317.0,0.67723554]
[1644081864006,0.01940617,41318.0,41317.0,0.77557328]
[1644081864452,0.00268205,41320.0,41318.0,0.84955429]
[1644081864657,0.00268205,41320.0,41319.0,0.436807]
[1644081864851,0.00268205,41320.0,41319.0,0.586807]
[1644081865053,0.002,41320.0,41319.0,0.586807]
[1644081865453,0.001,41331.0,41320.0,0.75]
[1644081865454,0.004,41327.0,41320.0,0.75]
[1644081865654,0.004,41327.0,41326.0,0.09042854]
[1644081865855,0.004,41327.0,41326.0,0.72294261]
[1644081866154,0.004,41327.0,41326.0,0.77294261]
[1644081866352,0.004,41327.0,41326.0,0.87294261]
[1644081866553,0.003,41327.0,41326.0,0.87294261]
[1644081866757,0.02048997,41329.0,41328.0,0.486807]
[1644081866955,0.02048997,41329.0,41328.0,0.786807]
[1644081867158,0.02048997,41329.0,41328.0,0.586807]
[1644081867556,0.02048997,41329.0,41328.0,0.336807]
[1644081867557,0.01980845,41329.0,41328.0,0.336807]
[1644081867757,0.01980845,41329.0,41319.0,0.21932854]
[1644081867758,0.41203907,41329.0,41319.0,0.1646]
[1644081867956,0.0809799,41322.0,41318.0,0.2]
[1644081868218,0.3486926,41329.0,41321.0,0.1]
[1644081868219,0.01980845,41329.0,41321.0,0.1]
[1644081868412,0.01980845,41329.0,41321.0,0.05]
[1644081868610,0.01980845,41329.0,41325.0,0.2]
[1644081869011,0.01980845,41329.0,41323.0,0.09042854]
[1644081869012,0.00068154,41327.0,41323.0,0.09042854]
[1644081869212,0.00068154,41327.0,41324.0,0.336807]
[1644081869413,0.00068154,41327.0,41326.0,0.536807]
[1644081869613,0.00068154,41327.0,41326.0,0.85426073]
[1644081869818,0.01980845,41329.0,41326.0,0.90426073]
[1644081870013,0.01980845,41329.0,41328.0,0.336807]
[1644081870211,0.02048997,41329.0,41328.0,0.436807]
[1644081870412,0.02048997,41329.0,41328.0,0.72058321]
[1644081870811,0.02048997,41329.0,41328.0,0.436807]
[1644081871214,0.01980845,41329.0,41328.0,0.336807]
[1644081872057,0.01980845,41329.0,41328.0,0.61419863]
[1644081872256,0.01980845,41329.0,41328.0,0.65462717]
[1644081873258,0.01980845,41329.0,41328.0,0.75462717]
[1644081873460,0.01980845,41329.0,41328.0,0.65462717]
[1644081873757,0.01180845,41329.0,41328.0,1.02535624]
[1644081873961,0.002,41335.0,41328.0,1.06995624]
[1644081874165,0.002,41335.0,41334.0,0.75]
[1644081874359,0.002,41335.0,41334.0,1.186807]
[1644081874560,0.002,41335.0,41334.0,1.181807]
[1644081874758,0.002,41335.0,41334.0,0.436807]
[1644081875463,0.00265783,41337.0,41335.0,0.336807]
[1644081875915,0.00073265,41336.0,41335.0,0.580707]
[1644081876116,0.00073265,41336.0,41335.0,0.87744613]
[1644081876316,0.00255675,41344.0,41336.0,0.75]
[1644081876519,0.001,41352.0,41344.0,0.480707]
[1644081876717,0.00106055,41355.0,41350.0,0.09042854]
[1644081876916,0.00106055,41355.0,41354.0,0.47723554]
[1644081877116,0.00106055,41355.0,41354.0,0.71178776]
[1644081877417,0.00106055,41355.0,41354.0,0.86178776]
[1644081877816,0.00106055,41355.0,41354.0,0.62685554]
[1644081878015,0.00106055,41355.0,41354.0,0.431407]
[1644081878216,0.00106055,41355.0,41345.0,0.3]
[1644081878217,0.16700055,41356.0,41343.0,0.15]
[1644081878417,0.16700055,41356.0,41337.0,0.0446]
[1644081878418,1.1303771,41355.0,41329.0,0.1817]
[1644081878618,1.1303771,41355.0,41322.0,0.1357]
[1644081878619,0.07960066,41333.0,41322.0,0.1357]
[1644081878816,0.38920444,41332.0,41328.0,0.27808013]
[1644081879220,0.38920444,41332.0,41324.0,0.3]
[1644081879458,0.0446,41331.0,41324.0,0.20163911]
[1644081879659,0.0446,41331.0,41326.0,0.00068129]
[1644081880061,0.05,41341.0,41326.0,0.05068129]
[1644081880262,0.35404237,41338.0,41329.0,0.19962]
[1644081880459,0.35404237,41338.0,41328.0,0.15]
[1644081880860,0.35404237,41338.0,41327.0,0.24222646]
[1644081881165,0.35404237,41338.0,41331.0,0.00063865]
[1644081881166,0.08283395,41337.0,41331.0,0.00063865]
[1644081881561,0.00027757,41337.0,41331.0,0.00063865]
[1644081881761,0.04527757,41341.0,41337.0,0.19962]
[1644081881964,3.66300113,41350.0,41339.0,0.04962]
[1644081881965,3.61840113,41350.0,41339.0,0.04962]
[1644081882161,0.5429,41355.0,41339.0,0.04962]
[1644081882162,0.05,41352.0,41339.0,0.04962]
[1644081882361,0.16700055,41356.0,41340.0,0.336807]
[1644081882561,0.07075461,41352.0,41341.0,0.52437361]
[1644081882765,0.3422162,41351.0,41342.0,0.336807]
[1644081883213,0.34249436,41351.0,41342.0,0.336807]
[1644081883409,0.34249436,41351.0,41342.0,0.33716723]
[1644081884412,0.34249436,41351.0,41342.0,0.336807]
[1644081884612,0.0008776,41357.0,41348.0,0.23706098]
[1644081884810,0.0008776,41357.0,41349.0,0.336807]
[1644081884811,0.34492572,41354.0,41349.0,0.336807]
[1644081885013,0.0008776,41357.0,41348.0,0.23706098]
[1644081885513,0.0008776,41357.0,41349.0,0.336807]
[1644081885715,0.00063509,41355.0,41349.0,0.336807]
[1644081885913,0.00063509,41355.0,41344.0,0.15]
[1644081886113,0.00063509,41355.0,41351.0,0.336807]
[1644081886512,0.00063509,41355.0,41349.0,0.04962]
[1644081886713,0.0008776,41357.0,41350.0,0.336807]
[1644081886962,0.0008776,41357.0,41351.0,0.2015737]
[1644081887162,0.0008776,41357.0,41352.0,0.336807]
[1644081887163,0.08354259,41354.0,41352.0,0.336807]
[1644081887363,0.08354259,41354.0,41342.0,0.02240113]
[1644081887569,0.07711651,41344.0,41342.0,0.02240113]
[1644081887869,0.636807,41353.0,41342.0,0.02240113]
[1644081887870,0.336807,41352.0,41342.0,0.02240113]
[1644081888061,0.35081533,41344.0,41342.0,0.02240113]
[1644081888263,0.35081533,41344.0,41342.0,0.02175494]
[1644081888463,0.0446,41352.0,41342.0,0.02175494]
[1644081888662,0.0446,41352.0,41338.0,0.04962]
[1644081889061,0.00064603,41350.0,41342.0,0.00064616]
[1644081889262,0.0446,41349.0,41342.0,0.00064616]
[1644081889464,0.352462,41349.0,41342.0,0.00064616]
[1644081889660,0.352462,41349.0,41344.0,0.25326368]
[1644081889861,0.307862,41349.0,41344.0,0.25326368]
[1644081890712,0.307862,41349.0,41342.0,0.00125891]
[1644081891108,0.00061268,41347.0,41342.0,0.00061275]
[1644081891507,0.00061268,41347.0,41343.0,0.336807]
[1644081891706,0.00061268,41347.0,41345.0,0.25803162]
[1644081892007,0.00061268,41347.0,41346.0,0.336807]
[1644081892008,0.00021212,41347.0,41346.0,0.336807]
[1644081892207,0.09707428,41352.0,41346.0,0.336807]
[1644081892806,0.09707428,41352.0,41347.0,0.336807]
[1644081893010,0.30353118,41350.0,41345.0,0.25840822]
[1644081893205,0.06786569,41351.0,41345.0,0.25840822]
[1644081893408,0.0664848,41351.0,41345.0,0.25840822]
[1644081894460,0.36270515,41351.0,41345.0,0.25840822]
[1644081894661,0.0008776,41357.0,41351.0,0.19962]
[1644081894861,0.0008776,41357.0,41354.0,0.05]
[1644081895060,0.0008776,41357.0,41355.0,0.55351627]
[1644081895461,0.0008776,41357.0,41356.0,0.39004854]
[1644081895670,0.0008776,41357.0,41356.0,0.42685554]
[1644081896059,0.0008776,41357.0,41356.0,0.82685554]
[1644081896358,0.0008776,41357.0,41356.0,0.52685554]
[1644081897159,0.0008776,41357.0,41356.0,0.336807]
[1644081897358,0.0008776,41357.0,41356.0,0.386807]
[1644081897560,0.0008776,41357.0,41356.0,0.336807]
[1644081897763,0.0008776,41357.0,41346.0,0.5616]
[1644081897962,0.0008776,41357.0,41348.0,0.279707]
[1644081898223,0.00115687,41357.0,41348.0,0.279707]
[1644081898714,0.00405676,41365.0,41356.0,0.29004854]
[1644081898914,0.02124884,41370.0,41364.0,0.14004854]
[1644081899116,0.02124884,41370.0,41365.0,0.381102]
[1644081899314,0.32,41369.0,41365.0,0.336502]
[1644081899515,0.336502,41366.0,41353.0,0.04962]
[1644081899711,0.06881251,41356.0,41353.0,0.04962]
[1644081899915,0.00027928,41358.0,41354.0,0.336502]
[1644081900114,0.00027928,41364.0,41354.0,0.336502]
[1644081900317,0.336502,41367.0,41344.0,0.01897145]
[1644081900516,0.3446,41366.0,41344.0,0.01897145]
[1644081900717,0.27747296,41356.0,41344.0,0.00467145]
[1644081900913,0.3446,41366.0,41344.0,0.00467145]
[1644081900914,0.0143,41345.0,41344.0,0.00467145]
[1644081901114,0.0143,41345.0,41344.0,0.34117345]
[1644081902664,0.31925016,41345.0,41344.0,0.34117345]
[1644081903066,0.31925016,41345.0,41344.0,0.00467145]
[1644081904065,0.29299249,41345.0,41344.0,0.00467145]
[1644081904467,0.29299249,41345.0,41344.0,0.01897145]
[1644081904669,0.29299249,41345.0,41344.0,0.0143]
[1644081905266,0.29299249,41345.0,41342.0,0.00068561]
[1644081905467,0.30729249,41345.0,41342.0,0.00068561]
[1644081906316,0.06382077,41339.0,41338.0,0.3]
[1644081906514,0.06382077,41339.0,41338.0,0.336502]
[1644081906713,0.06382077,41339.0,41333.0,0.05]
[1644081906914,0.06382077,41339.0,41335.0,0.336502]
[1644081907313,0.06382077,41339.0,41335.0,0.386502]
[1644081907515,0.37909246,41338.0,41337.0,0.336502]
[1644081908114,0.37909246,41338.0,41335.0,0.0006641]
[1644081908313,0.37909246,41338.0,41336.0,0.336502]
[1644081908518,0.37909246,41338.0,41337.0,0.336502]
[1644081909214,0.37909246,41338.0,41337.0,0.33663]
[1644081909667,0.37909246,41338.0,41335.0,0.0006641]
[1644081909868,0.37909246,41338.0,41331.0,0.14004854]
[1644081910068,0.37909246,41338.0,41335.0,0.00063972]
[1644081910269,0.08536591,41337.0,41335.0,0.00063972]
[1644081911175,0.0446,41344.0,41335.0,1.0]
[1644081911374,0.24759573,41348.0,41335.0,1.0]
[1644081911375,0.01869973,41348.0,41342.0,0.09042854]
[1644081911770,0.01869973,41348.0,41343.0,0.33663]
[1644081912172,0.3504426,41347.0,41343.0,0.33663]
[1644081912371,0.3504426,41347.0,41343.0,0.19678916]
[1644081912573,0.3504426,41347.0,41343.0,0.19242881]
[1644081912774,0.3504426,41347.0,41343.0,0.00063965]
[1644081913509,0.3504426,41347.0,41339.0,0.15]
[1644081913711,0.3504426,41347.0,41343.0,0.00064076]
[1644081914317,0.3504426,41347.0,41335.0,1.02084174]
[1644081914318,0.75,41346.0,41335.0,1.02084174]
[1644081914510,0.3446,41345.0,41335.0,1.00654174]
[1644081914710,0.0446,41345.0,41335.0,0.9857]
[1644081914909,0.1446,41345.0,41335.0,0.9857]
[1644081915309,0.38738983,41336.0,41335.0,1.32233]
[1644081916110,0.31927077,41336.0,41335.0,1.32233]
[1644081916710,0.31927077,41336.0,41335.0,1.27953]
[1644081916962,0.31927077,41336.0,41326.0,0.5636]
[1644081917164,0.07808859,41333.0,41327.0,0.33663]
[1644081917363,0.07808859,41333.0,41329.0,0.00068522]
[1644081917564,0.07808859,41333.0,41330.0,0.25052213]
[1644081917763,0.31927077,41336.0,41330.0,0.25052213]
[1644081918265,0.31927077,41336.0,41329.0,0.00068522]
[1644081918466,0.31927077,41336.0,41326.0,0.09042854]
[1644081918666,0.31927077,41336.0,41331.0,0.0006852]
[1644081918870,0.06452957,41335.0,41331.0,0.0006852]
[1644081919066,0.33663,41334.0,41331.0,0.0006852]
[1644081919468,0.33479618,41334.0,41331.0,0.0006852]
[1644081919666,0.43479618,41334.0,41320.0,0.54240188]
[1644081919966,0.08841873,41326.0,41320.0,0.52878708]
[1644081920165,0.08841873,41326.0,41321.0,0.336688]
[1644081920365,0.31615536,41323.0,41320.0,0.02010188]
[1644081920821,0.31615536,41323.0,41315.0,0.11238747]
[1644081920822,0.06783456,41316.0,41315.0,0.02195893]
[1644081921016,0.0446,41322.0,41315.0,0.01695893]
[1644081921217,0.336688,41321.0,41315.0,0.01695893]
[1644081921418,0.160731,41320.0,41315.0,0.01695893]
[1644081921616,0.0446,41322.0,41315.0,0.01695893]
[1644081922022,0.336688,41321.0,41315.0,0.01695893]
[1644081922216,0.12495075,41320.0,41312.0,0.05]
[1644081922419,0.06487985,41313.0,41312.0,0.05]
[1644081922617,0.10947985,41313.0,41312.0,0.05]
[1644081923015,0.43878268,41313.0,41312.0,0.05]
[1644081923317,0.77547068,41313.0,41312.0,0.05]
[1644081923515,0.71059083,41313.0,41312.0,0.05]
[1644081923717,0.37390283,41313.0,41312.0,0.05]
[1644081924757,0.46245889,41313.0,41312.0,0.05]
[1644081925457,0.41785889,41313.0,41312.0,0.05]
[1644081925857,0.75454689,41313.0,41312.0,0.05]
[1644081926057,0.5,41312.0,41311.0,0.02]
[1644081926260,0.5,41312.0,41304.0,0.04042854]
[1644081926261,0.55,41311.0,41310.0,0.0006436]
[1644081926658,0.87434619,41311.0,41310.0,0.0006436]
[1644081927259,0.87434619,41311.0,41301.0,0.02]
[1644081927562,0.3067365,41310.0,41308.0,0.00064362]
[1644081927759,0.07145645,41309.0,41308.0,0.00064362]
[1644081928409,0.07145645,41309.0,41301.0,0.33534099]
[1644081928609,0.07145645,41309.0,41306.0,0.00064364]
[1644081929013,0.4,41308.0,41304.0,0.03607218]
[1644081929208,0.07145645,41309.0,41304.0,0.08607218]
[1644081930511,0.07145645,41309.0,41301.0,0.02]
[1644081930713,0.3067365,41310.0,41305.0,0.08607218]
[1644081930911,0.07997068,41309.0,41305.0,0.07177218]
[1644081931615,0.40400175,41309.0,41305.0,0.07177218]
[1644081932067,0.40400175,41309.0,41305.0,0.05]
[1644081932068,0.07997068,41309.0,41305.0,0.05]
[1644081932267,0.07997068,41309.0,41305.0,0.07177218]
[1644081933668,0.32029872,41308.0,41305.0,0.07177218]
[1644081933869,0.07997068,41309.0,41305.0,0.06677218]
[1644081934070,0.316672,41308.0,41304.0,0.06677218]
[1644081934272,0.316672,41308.0,41304.0,0.05]
[1644081934468,0.316672,41308.0,41301.0,0.02]
[1644081934669,0.316672,41308.0,41304.0,0.00064769]
[1644081934869,0.336688,41307.0,41304.0,0.00064769]
[1644081935470,0.37560023,41310.0,41304.0,0.00064769]
[1644081935716,0.37560023,41310.0,41301.0,0.02]
[1644081935912,0.37560023,41310.0,41303.0,0.0006477]
[1644081936814,0.37560023,41310.0,41301.0,0.02]
[1644081937010,0.06949916,41303.0,41301.0,0.02]
[1644081937812,0.06949916,41303.0,41301.0,0.0057]
[1644081938013,0.336688,41302.0,41301.0,0.0057]
[1644081938214,0.67103658,41302.0,41301.0,0.0057]
[1644081939014,0.75,41301.0,41300.0,0.0006374]
[1644081939215,0.910731,41301.0,41291.0,0.5449]
[1644081939465,0.06638505,41293.0,41291.0,0.5449]
[1644081939660,0.06638505,41293.0,41292.0,0.336688]
[1644081939861,0.06638505,41293.0,41291.0,0.08677218]
[1644081940263,0.0446,41302.0,41292.0,0.40308018]
[1644081940470,0.110561,41304.0,41301.0,0.06677218]
[1644081940471,0.05,41304.0,41301.0,0.06677218]
[1644081940661,0.01964592,41307.0,41301.0,0.06677218]
[1644081940864,0.01964592,41307.0,41305.0,0.05]
[1644081941262,0.309491,41306.0,41305.0,0.04177218]
[1644081942263,0.309491,41306.0,41303.0,0.00066341]
[1644081942562,0.309491,41306.0,41305.0,0.04177218]
[1644081945111,0.309491,41306.0,41303.0,0.00066341]
[1644081945313,0.07709312,41302.0,41298.0,0.04177218]
[1644081945511,0.00822782,41304.0,41298.0,0.04177218]
[1644081945512,0.00822782,41304.0,41299.0,0.336688]
[1644081945713,0.309491,41306.0,41303.0,0.04177218]
[1644081945913,0.309491,41306.0,41304.0,0.336688]
[1644081946315,0.309491,41306.0,41303.0,0.04177218]
[1644081946614,0.07036401,41304.0,41303.0,0.0424127]
[1644081946815,0.07036401,41304.0,41303.0,0.3791007]
[1644081947060,0.309491,41306.0,41303.0,0.3791007]
[1644081947459,0.00822782,41305.0,41303.0,0.3791007]
[1644081947659,0.00822782,41305.0,41303.0,0.37846018]
[1644081948260,0.00822782,41305.0,41303.0,0.47346018]
[1644081948460,0.00822782,41305.0,41304.0,0.336688]
[1644081948860,0.00822782,41305.0,41304.0,0.256688]
[1644081949060,0.09613183,41305.0,41304.0,0.256688]
[1644081949661,0.09613183,41305.0,41303.0,0.13677218]
[1644081950264,0.00822782,41305.0,41303.0,0.13677218]
[1644081950723,0.309491,41306.0,41304.0,0.336812]
[1644081950913,0.31771882,41306.0,41304.0,0.336812]
[1644081951516,0.07797409,41305.0,41303.0,0.13741424]
[1644081951716,0.07797409,41305.0,41303.0,0.00064206]
[1644081952116,0.07797409,41305.0,41304.0,0.04177218]
[1644081952816,0.07797409,41305.0,41302.0,0.00064206]
[1644081953216,0.07797409,41305.0,41304.0,0.04177218]
[1644081953417,0.07797409,41305.0,41302.0,0.00064206]
[1644081953616,0.07797409,41305.0,41300.0,0.34783572]
[1644081953817,0.07797409,41305.0,41301.0,0.00064197]
[1644081954018,0.07797409,41305.0,41304.0,0.04177218]
[1644081954218,0.07797409,41305.0,41301.0,0.00064197]
[1644081954459,0.07797409,41305.0,41304.0,0.04177218]
[1644081955065,0.07797409,41305.0,41300.0,0.34783572]
[1644081955262,0.07797409,41305.0,41304.0,0.04177218]
[1644081955864,0.01848697,41306.0,41304.0,0.04177218]
[1644081956065,0.01848697,41306.0,41305.0,0.336812]
[1644081956866,0.00822782,41310.0,41304.0,0.04177218]
[1644081957065,0.30549239,41309.0,41304.0,0.04177218]
[1644081957467,0.30549239,41309.0,41304.0,0.04243772]
[1644081957865,0.30049239,41309.0,41304.0,0.04243772]
[1644081958067,0.30049239,41309.0,41304.0,0.00066554]
[1644081958320,0.30049239,41309.0,41304.0,0.04243772]
[1644081958514,0.30049239,41309.0,41304.0,0.04177218]
[1644081958716,0.30049239,41309.0,41304.0,0.04243772]
[1644081958914,0.30049239,41309.0,41304.0,0.03743772]
[1644081959615,0.30049239,41309.0,41304.0,0.03677218]
[1644081960016,0.30049239,41309.0,41304.0,0.03743772]
[1644081960916,0.30049239,41309.0,41304.0,0.03677218]
[1644081961117,0.30049239,41309.0,41304.0,0.03741197]
[1644081961962,0.30049239,41309.0,41305.0,0.03677218]
[1644081962765,0.30049239,41309.0,41307.0,0.26939414]
[1644081963166,0.29549239,41309.0,41302.0,0.05]
[1644081963366,0.29549239,41309.0,41301.0,0.03677218]
[1644081963565,0.01986135,41311.0,41300.0,0.30962706]
[1644081963766,0.01986135,41311.0,41304.0,0.03677218]
[1644081964569,0.01986135,41311.0,41303.0,0.05]
[1644081964767,0.01322782,41315.0,41303.0,0.05]
[1644081964768,0.09849846,41314.0,41310.0,0.03677218]
[1644081964967,0.336812,41313.0,41305.0,0.25258283]
[1644081965168,0.29995224,41307.0,41305.0,0.25258283]
[1644081965366,0.02153626,41314.0,41306.0,0.336812]
[1644081965570,0.02153626,41314.0,41305.0,0.35258283]
[1644081965816,0.02153626,41314.0,41306.0,0.03677218]
[1644081966116,0.02153626,41314.0,41305.0,0.35258283]
[1644081966316,0.02153626,41314.0,41308.0,0.03677218]
[1644081966915,0.36714908,41316.0,41308.0,0.03677218]
[1644081967716,0.36714908,41316.0,41309.0,0.19962]
[1644081968222,0.01993839,41317.0,41309.0,0.51584073]
[1644081968421,0.16424803,41319.0,41309.0,0.51584073]
[1644081968422,0.16424803,41319.0,41317.0,0.75]
[1644081968622,0.00064008,41322.0,41317.0,0.75]
[1644081968623,0.00064008,41322.0,41319.0,0.336812]
[1644081968822,0.00064008,41322.0,41321.0,0.57320418]
[1644081969020,0.00064008,41322.0,41321.0,0.86401345]
[1644081969221,0.00064008,41322.0,41321.0,1.11251345]
[1644081969470,0.05,41327.0,41321.0,1.11251345]
[1644081969471,0.05,41327.0,41323.0,0.336812]
[1644081969670,0.001,41333.0,41326.0,0.03677218]
[1644081969869,0.001,41333.0,41332.0,0.03677218]
[1644081970071,0.001,41333.0,41332.0,0.57320418]
[1644081970267,0.001,41333.0,41332.0,0.62320418]
[1644081970467,0.001,41333.0,41332.0,0.93977811]
[1644081971068,0.001,41333.0,41332.0,0.74015811]
[1644081971267,0.001,41333.0,41332.0,0.84015811]
[1644081971468,0.001,41333.0,41332.0,1.03977811]
[1644081971670,0.001,41333.0,41332.0,1.36555621]